bitfinex/quotes_BTCUSD_20241014
["timestamp","ask_amount","ask_price","bid_price","bid_amount"]
[1728867291587,1.09386955,62658.0,62657.0,0.81257902]
[1728867291588,0.85785821,62658.0,62657.0,0.81257902]
[1728867292627,1.07985821,62658.0,62657.0,0.81257902]
[1728867292882,1.07985821,62658.0,62657.0,0.65297902]
[1728867292883,1.11962643,62658.0,62657.0,0.65297902]
[1728867293141,1.15743036,62658.0,62657.0,0.65297902]
[1728867293397,1.15735782,62658.0,62657.0,0.65297902]
[1728867293637,1.0385,62658.0,62657.0,0.65297902]
[1728867294119,1.0435,62658.0,62657.0,0.65297902]
[1728867294593,1.5295,62658.0,62657.0,0.65297902]
[1728867295083,1.56850951,62658.0,62657.0,0.65297902]
[1728867295312,1.6593188,62658.0,62657.0,0.43775902]
[1728867295544,1.55450951,62658.0,62657.0,0.43775902]
[1728867295806,1.55450951,62658.0,62657.0,0.41894981]
[1728867296069,0.342419,62649.0,62648.0,0.000819]
[1728867296305,0.85251833,62649.0,62648.0,0.000819]
[1728867297026,0.87753141,62649.0,62648.0,0.000819]
[1728867297538,1.12753141,62649.0,62648.0,0.000819]
[1728867298035,0.90165609,62649.0,62648.0,0.000819]
[1728867298287,1.01459375,62649.0,62648.0,0.000819]
[1728867298534,1.59827086,62649.0,62648.0,0.000819]
[1728867298763,1.62627086,62649.0,62648.0,0.000819]
[1728867299279,1.42965609,62649.0,62648.0,0.000819]
[1728867299524,1.54259375,62649.0,62648.0,0.000819]
[1728867299764,1.42965609,62649.0,62648.0,0.000819]
[1728867299996,1.54259375,62649.0,62648.0,0.000819]
[1728867300695,1.52859375,62649.0,62648.0,0.000819]
[1728867300939,1.70396346,62649.0,62648.0,0.000819]
[1728867301219,1.68996346,62649.0,62648.0,0.000819]
[1728867301478,1.57646346,62649.0,62648.0,0.000819]
[1728867301708,1.59046346,62649.0,62648.0,0.000819]
[1728867302183,1.57945038,62649.0,62648.0,0.000819]
[1728867302956,1.62117559,62649.0,62648.0,0.000819]
[1728867303192,1.67795038,62649.0,62648.0,0.000819]
[1728867303912,1.66395038,62649.0,62648.0,0.000819]
[1728867304162,1.67795038,62649.0,62648.0,0.000819]
[1728867304399,1.66395038,62649.0,62648.0,0.000819]
[1728867304647,1.41395038,62649.0,62648.0,0.000819]
[1728867304885,1.42795038,62649.0,62648.0,0.000819]
[1728867305127,1.45296326,62649.0,62648.0,0.000819]
[1728867305622,1.70296326,62649.0,62648.0,0.000819]
[1728867305856,1.67496326,62649.0,62648.0,0.000819]
[1728867306320,1.68896326,62649.0,62648.0,0.000819]
[1728867307025,1.70296326,62649.0,62648.0,0.000819]
[1728867310566,1.24685589,62649.0,62648.0,0.000819]
[1728867311451,0.99685589,62649.0,62648.0,0.000819]
[1728867312128,0.94884301,62649.0,62648.0,0.000819]
[1728867313047,0.83484301,62649.0,62648.0,0.000819]
[1728867313261,0.514,62649.0,62648.0,0.172219]
[1728867313476,0.528,62649.0,62648.0,0.172219]
[1728867313684,0.528,62649.0,62648.0,0.19182449]
[1728867313894,0.514,62649.0,62648.0,0.19182449]
[1728867314104,0.5,62649.0,62648.0,0.19182449]
[1728867314329,0.528,62649.0,62648.0,0.19182449]
[1728867314535,0.514,62649.0,62648.0,0.19182449]
[1728867314743,0.659619,62649.0,62648.0,0.19182449]
[1728867314954,0.671619,62649.0,62648.0,0.19182449]
[1728867315165,0.69662637,62649.0,62648.0,0.19182449]
[1728867316211,0.70662637,62649.0,62648.0,0.19182449]
[1728867317704,0.54700737,62649.0,62648.0,0.19182449]
[1728867317912,0.70662637,62649.0,62648.0,0.19182449]
[1728867319861,0.86785038,62649.0,62648.0,0.02042449]
[1728867320356,0.86785038,62649.0,62648.0,0.000819]
[1728867322075,0.781619,62649.0,62648.0,0.000819]
[1728867322283,0.522,62649.0,62648.0,0.340741]
[1728867322497,0.522,62649.0,62648.0,0.50196501]
[1728867322716,0.522,62649.0,62648.0,0.55353388]
[1728867323148,0.512,62649.0,62648.0,0.55553388]
[1728867323358,0.5,62649.0,62648.0,0.55553388]
[1728867323779,0.503,62649.0,62648.0,0.55353388]
[1728867323998,0.502,62649.0,62648.0,0.55353388]
[1728867324211,0.502,62649.0,62648.0,0.55553388]
[1728867324445,0.503,62649.0,62648.0,0.55753388]
[1728867324655,0.002,62649.0,62648.0,0.55553388]
[1728867325067,0.003,62649.0,62648.0,0.55753388]
[1728867325795,0.003,62649.0,62648.0,0.56198]
[1728867326033,0.001,62649.0,62648.0,0.56198]
[1728867326432,0.002,62649.0,62648.0,0.56498]
[1728867326894,0.23772356,62656.0,62653.0,0.159608]
[1728867327099,0.39732656,62656.0,62652.0,0.005]
[1728867327280,0.39732656,62656.0,62652.0,0.16461]
[1728867327481,0.39732656,62656.0,62654.0,0.01937974]
[1728867327733,0.159606,62654.0,62653.0,0.0193833]
[1728867327942,0.319203,62656.0,62652.0,0.005]
[1728867328146,0.159613,62652.0,62648.0,0.37782913]
[1728867328347,0.159613,62652.0,62648.0,0.37582913]
[1728867328766,0.159613,62652.0,62651.0,0.005]
[1728867328991,0.159609,62654.0,62652.0,0.005]
[1728867329618,0.163611,62652.0,62651.0,0.005]
[1728867330027,0.159611,62652.0,62651.0,0.005]
[1728867330234,0.159608,62654.0,62652.0,0.005]
[1728867330473,0.165608,62654.0,62652.0,0.005]
[1728867330984,0.006,62654.0,62652.0,0.005]
[1728867331450,0.165607,62654.0,62652.0,0.005]
[1728867331664,0.167607,62654.0,62652.0,0.005]
[1728867331859,0.167607,62654.0,62652.0,0.17267013]
[1728867332427,0.008,62654.0,62652.0,0.17267013]
[1728867332621,0.008,62654.0,62653.0,0.24410081]
[1728867332849,0.014,62654.0,62653.0,0.33690081]
[1728867333093,0.014,62654.0,62653.0,0.331709]
[1728867333666,0.008,62654.0,62653.0,0.331709]
[1728867333968,0.001638,62657.0,62656.0,0.164601]
[1728867334206,0.001638,62657.0,62656.0,0.33227113]
[1728867335233,0.012638,62657.0,62656.0,0.33227113]
[1728867335828,0.021638,62657.0,62656.0,0.33227113]
[1728867338106,0.001638,62657.0,62656.0,0.33227113]
[1728867338336,0.004638,62657.0,62656.0,0.35164421]
[1728867338585,0.009638,62657.0,62656.0,0.35164421]
[1728867339572,0.009638,62657.0,62656.0,0.38368421]
[1728867340039,0.006638,62657.0,62656.0,0.38368421]
[1728867340248,0.001638,62657.0,62656.0,0.38368421]
[1728867340669,0.003638,62657.0,62656.0,0.38368421]
[1728867340909,0.001638,62657.0,62656.0,0.38368421]
[1728867341142,0.001638,62657.0,62656.0,0.38668421]
[1728867342121,0.001638,62657.0,62656.0,0.38968421]
[1728867348166,0.00111497,62657.0,62656.0,0.38968421]
[1728867352714,0.00111497,62657.0,62656.0,0.38668421]
[1728867352920,0.00111497,62657.0,62656.0,0.38368421]
[1728867353132,0.00511497,62657.0,62656.0,0.38368421]
[1728867353340,0.00511497,62657.0,62656.0,0.38568421]
[1728867354245,0.00111497,62657.0,62656.0,0.38568421]
[1728867354473,0.00111497,62657.0,62656.0,0.38668421]
[1728867354916,0.00211497,62657.0,62656.0,0.38668421]
[1728867355122,0.00211497,62657.0,62656.0,0.38368421]
[1728867357274,0.00211497,62657.0,62656.0,0.38450321]
[1728867360655,0.00111497,62657.0,62656.0,0.38450321]
[1728867367902,0.00111497,62657.0,62656.0,0.3297265]
[1728867372937,0.00111497,62657.0,62656.0,0.02019208]
[1728867372938,0.24221397,62657.0,62656.0,0.02019208]
[1728867373361,0.24221397,62657.0,62656.0,0.000819]
[1728867374616,0.24221397,62657.0,62656.0,0.02058081]
[1728867374822,0.24221397,62657.0,62656.0,0.000819]
[1728867375039,0.24221397,62657.0,62656.0,0.02058081]
[1728867375251,0.24221397,62657.0,62656.0,0.000819]
[1728867375476,0.18571825,62657.0,62656.0,0.000819]
[1728867376145,0.18571825,62657.0,62656.0,0.02060632]
[1728867376411,0.18571825,62657.0,62656.0,0.000819]
[1728867380130,0.34694226,62657.0,62656.0,0.000819]
[1728867380343,0.42744226,62657.0,62656.0,0.000819]
[1728867382114,0.40243798,62657.0,62656.0,0.000819]
[1728867383378,0.42543798,62657.0,62656.0,0.000819]
[1728867384664,0.47018962,62657.0,62656.0,0.000819]
[1728867384877,0.42543798,62657.0,62656.0,0.000819]
[1728867385517,0.40243798,62657.0,62656.0,0.000819]
[1728867385767,0.00111497,62657.0,62656.0,0.11371242]
[1728867386251,0.00111497,62657.0,62656.0,0.1335924]
[1728867386461,0.02612054,62657.0,62656.0,0.1335924]
[1728867387995,0.02612054,62657.0,62656.0,0.28460828]
[1728867390227,0.18571954,62657.0,62656.0,0.28460828]
[1728867391246,0.02612054,62657.0,62656.0,0.28460828]
[1728867392251,0.00111497,62657.0,62656.0,0.28460828]
[1728867393520,0.16071397,62657.0,62656.0,0.28460828]
[1728867394076,0.00111497,62657.0,62656.0,0.28460828]
[1728867395466,0.02611868,62657.0,62656.0,0.28460828]
[1728867395933,0.18571768,62657.0,62656.0,0.28460828]
[1728867396167,0.18571768,62657.0,62656.0,0.18830828]
[1728867402181,0.00111497,62657.0,62656.0,0.18830828]
[1728867402861,0.16071397,62657.0,62656.0,0.18830828]
[1728867403854,0.00111497,62657.0,62656.0,0.34790928]
[1728867404278,0.00111497,62657.0,62656.0,0.35290928]
[1728867404551,0.00111497,62657.0,62656.0,0.45230928]
[1728867404792,0.00111497,62657.0,62656.0,0.52890928]
[1728867405723,0.00111497,62657.0,62656.0,0.56094928]
[1728867405998,0.00111497,62657.0,62656.0,0.39333998]
[1728867406266,0.00111497,62657.0,62656.0,0.52890928]
[1728867409911,0.00111497,62657.0,62656.0,0.47417378]
[1728867410854,0.00111497,62657.0,62656.0,0.50621378]
[1728867411562,0.00111497,62657.0,62656.0,0.61908758]
[1728867411769,0.00111497,62657.0,62656.0,0.50621378]
[1728867412210,0.00111497,62657.0,62656.0,0.61908758]
[1728867413336,0.00111497,62657.0,62656.0,0.50621378]
[1728867415139,0.00111497,62657.0,62656.0,0.61908758]
[1728867415379,0.00111497,62657.0,62656.0,0.50621378]
[1728867415831,0.00111497,62657.0,62656.0,0.61908758]
[1728867416601,0.00111497,62657.0,62656.0,0.78031159]
[1728867417052,0.00111497,62657.0,62656.0,0.66743779]
[1728867417319,0.00111497,62657.0,62656.0,0.78031159]
[1728867419227,0.00111497,62657.0,62656.0,0.78231159]
[1728867419487,0.00111497,62657.0,62656.0,0.78031159]
[1728867419980,0.001638,62658.0,62656.0,0.78031159]
[1728867419981,0.001638,62658.0,62657.0,0.007]
[1728867420201,0.001638,62660.0,62659.0,0.4386876]
[1728867420409,0.001638,62660.0,62659.0,1.00787582]
[1728867420619,0.001638,62660.0,62659.0,1.02754217]
[1728867421052,0.001638,62660.0,62659.0,0.85093523]
[1728867421277,0.001638,62660.0,62659.0,1.12321892]
[1728867421490,0.001638,62660.0,62659.0,1.02753653]
[1728867421752,0.001638,62660.0,62659.0,1.12321552]
[1728867421961,0.001638,62660.0,62659.0,1.02753653]
[1728867422394,0.001638,62660.0,62659.0,1.12321552]
[1728867422611,0.001638,62660.0,62659.0,1.23608932]
[1728867423482,0.001638,62660.0,62659.0,1.14041033]
[1728867423944,0.001638,62662.0,62661.0,0.198628]
[1728867424155,0.001638,62662.0,62661.0,0.60065328]
[1728867424351,0.001638,62662.0,62661.0,0.62021463]
[1728867424571,0.001638,62662.0,62661.0,0.54851336]
[1728867425492,0.001638,62662.0,62661.0,0.59630249]
[1728867425728,0.001638,62662.0,62661.0,0.59629502]
[1728867426694,0.001638,62662.0,62661.0,0.54851336]
[1728867427675,0.001638,62662.0,62661.0,0.59628412]
[1728867428203,0.001638,62662.0,62661.0,0.54851336]
[1728867428442,0.001638,62662.0,62661.0,0.59628842]
[1728867428675,0.001638,62662.0,62661.0,0.54851336]
[1728867430829,0.001638,62662.0,62661.0,0.59627936]
[1728867432881,0.001638,62662.0,62661.0,0.54851336]
[1728867435157,0.001638,62662.0,62661.0,0.59627936]
[1728867435363,0.001638,62662.0,62661.0,0.54851336]
[1728867436648,0.001638,62662.0,62661.0,0.59627936]
[1728867437091,0.001638,62662.0,62661.0,0.54851336]
[1728867437749,0.001638,62662.0,62661.0,0.59626914]
[1728867437956,0.001638,62662.0,62661.0,0.54851336]
[1728867438623,0.001638,62662.0,62661.0,0.59626943]
[1728867438836,0.001638,62662.0,62661.0,0.54851336]
[1728867439350,0.001638,62662.0,62661.0,0.59626981]
[1728867439571,0.001638,62662.0,62661.0,0.54851336]
[1728867440228,0.001638,62662.0,62661.0,0.59626852]
[1728867440653,0.001638,62662.0,62661.0,0.54851336]
[1728867440860,0.001638,62662.0,62661.0,0.59626873]
[1728867443079,0.001638,62662.0,62661.0,0.54851336]
[1728867447315,0.001638,62662.0,62661.0,0.64851336]
[1728867447982,0.001638,62662.0,62661.0,0.69835004]
[1728867448883,0.001638,62662.0,62661.0,0.64851336]
[1728867449307,0.001638,62662.0,62661.0,0.69836431]
[1728867452675,0.00164,62665.0,62664.0,0.5189686]
[1728867452897,0.00164,62665.0,62664.0,0.73004356]
[1728867453127,0.00164,62665.0,62664.0,0.74934787]
[1728867453376,0.00164,62665.0,62664.0,0.9258042]
[1728867453605,0.00164,62665.0,62664.0,0.7000566]
[1728867453855,0.00164,62665.0,62664.0,0.87595325]
[1728867454336,0.00164,62665.0,62664.0,0.92586772]
[1728867454577,0.00164,62665.0,62664.0,0.83126772]
[1728867454806,0.00164,62665.0,62664.0,0.66847945]
[1728867455453,0.00164,62665.0,62664.0,0.71839482]
[1728867455959,0.00164,62665.0,62664.0,0.73463674]
[1728867456443,0.00164,62665.0,62664.0,0.79759517]
[1728867456689,0.00164,62665.0,62664.0,0.84750905]
[1728867457878,0.00164,62665.0,62664.0,0.73463525]
[1728867460030,0.00164,62665.0,62664.0,0.68472137]
[1728867461825,0.00164,62665.0,62664.0,0.7346406]
[1728867464416,0.00164,62665.0,62664.0,0.8475144]
[1728867466695,0.00164,62665.0,62664.0,0.8455144]
[1728867466928,0.23772356,62677.0,62675.0,0.005]
[1728867467157,0.23772356,62677.0,62675.0,0.43865081]
[1728867467615,0.07884,62681.0,62675.0,0.43865081]
[1728867467616,0.07884,62681.0,62675.0,0.45309748]
[1728867468056,0.07884,62681.0,62675.0,0.45509748]
[1728867468273,0.07884,62681.0,62675.0,0.72294057]
[1728867468724,0.07884,62681.0,62675.0,0.72094057]
[1728867468937,0.07884,62681.0,62675.0,0.62512291]
[1728867469157,0.07884,62681.0,62675.0,0.72094057]
[1728867469618,0.07884,62681.0,62675.0,0.72294057]
[1728867470845,0.00164,62681.0,62675.0,0.62712291]
[1728867471060,0.00164,62681.0,62675.0,0.65916291]
[1728867471286,0.00164,62681.0,62675.0,0.73946291]
[1728867471504,0.00164,62681.0,62675.0,0.6125085]
[1728867471724,0.00164,62681.0,62675.0,0.73941773]
[1728867472167,0.00164,62681.0,62675.0,0.78930062]
[1728867472401,0.00164,62681.0,62675.0,0.73941773]
[1728867473278,0.00164,62681.0,62675.0,0.62654393]
[1728867474849,0.00164,62681.0,62675.0,0.66590205]
[1728867475087,0.00164,62681.0,62675.0,0.54624393]
[1728867475311,0.00164,62681.0,62675.0,0.77878004]
[1728867475559,0.00164,62681.0,62675.0,0.65911773]
[1728867476444,0.00164,62681.0,62675.0,0.75721773]
[1728867477119,0.00164,62681.0,62675.0,0.80706623]
[1728867477335,0.00164,62681.0,62675.0,0.69419243]
[1728867477622,0.00164,62681.0,62675.0,0.64417436]
[1728867478056,0.00164,62681.0,62675.0,0.69401907]
[1728867478275,0.00164,62681.0,62675.0,0.64417436]
[1728867479837,0.00164,62681.0,62675.0,0.69401237]
[1728867480111,0.00164,62681.0,62675.0,0.64417436]
[1728867481276,0.00164,62681.0,62675.0,0.64413002]
[1728867484680,0.00164,62681.0,62678.0,0.4243326]
[1728867484903,0.00164,62681.0,62678.0,0.88171959]
[1728867485250,0.00164,62681.0,62678.0,0.89155457]
[1728867485388,0.00164,62681.0,62678.0,0.77198346]
[1728867485632,0.00164,62685.0,62684.0,0.19857]
[1728867485862,0.00164,62685.0,62684.0,0.65727777]
[1728867486082,0.00164,62685.0,62684.0,0.8436399]
[1728867487417,0.00164,62685.0,62684.0,0.59336593]
[1728867487845,0.00164,62685.0,62684.0,0.59536593]
[1728867488074,0.00164,62685.0,62684.0,0.60904833]
[1728867488533,0.00164,62685.0,62684.0,0.65686408]
[1728867489628,0.00164,62685.0,62684.0,0.41543408]
[1728867489847,0.16984,62685.0,62684.0,0.31926812]
[1728867490063,0.16984,62685.0,62684.0,0.43214192]
[1728867490546,0.16984,62685.0,62684.0,0.47995819]
[1728867490965,0.16984,62685.0,62684.0,0.43214192]
[1728867491633,0.16984,62685.0,62684.0,0.47995819]
[1728867491849,0.16984,62685.0,62684.0,0.43214192]
[1728867492701,0.16984,62685.0,62684.0,0.47995819]
[1728867493376,0.16984,62685.0,62684.0,0.20639432]
[1728867493620,0.16984,62685.0,62684.0,0.20139432]
[1728867493853,0.16984,62685.0,62684.0,0.20639432]
[1728867494351,0.16984,62685.0,62684.0,0.00982432]
[1728867494590,0.329367,62685.0,62684.0,0.00982432]
[1728867494825,0.1786,62684.0,62673.0,0.005]
[1728867495066,0.00164,62685.0,62670.0,0.07172441]
[1728867495067,0.184167,62685.0,62684.0,0.00981788]
[1728867495306,0.184167,62685.0,62670.0,0.005]
[1728867495307,0.159539,62681.0,62670.0,0.005]
[1728867495546,0.02464,62685.0,62670.0,0.005]
[1728867495547,0.159559,62673.0,62670.0,0.005]
[1728867495778,0.159559,62673.0,62671.0,0.01484097]
[1728867496009,0.1786,62674.0,62671.0,0.01484097]
[1728867496010,0.338156,62674.0,62671.0,0.01484097]
[1728867496211,0.1786,62674.0,62671.0,0.01484097]
[1728867496462,0.02499552,62673.0,62671.0,0.01484097]
[1728867496959,0.02499552,62673.0,62672.0,0.15956]
[1728867497156,0.02499552,62673.0,62672.0,0.2724338]
[1728867497407,0.02499552,62673.0,62672.0,0.282273]
[1728867498044,0.02499552,62673.0,62672.0,0.287273]
[1728867499398,0.02499552,62673.0,62672.0,0.0148392]
[1728867499617,0.26395352,62673.0,62672.0,0.0098392]
[1728867499852,0.15956,62672.0,62668.0,0.159569]
[1728867500076,0.26395452,62673.0,62668.0,0.159569]
[1728867500314,0.159561,62672.0,62669.0,0.00989481]
[1728867500590,0.10439552,62673.0,62666.0,0.03699]
[1728867500801,0.10439552,62673.0,62670.0,0.00993376]
[1728867500802,0.26395352,62673.0,62670.0,0.00993376]
[1728867501011,0.26395352,62673.0,62669.0,0.159568]
[1728867501241,0.24106,62672.0,62671.0,0.00993199]
[1728867501472,0.336563,62671.0,62670.0,0.00993376]
[1728867501696,0.177,62671.0,62665.0,0.000819]
[1728867501919,0.336576,62666.0,62665.0,0.000819]
[1728867505236,0.36157556,62666.0,62665.0,0.000819]
[1728867512210,0.336576,62666.0,62665.0,0.000819]
[1728867515163,0.02499959,62666.0,62665.0,0.32801699]
[1728867515594,0.02499959,62666.0,62665.0,0.33801014]
[1728867517117,0.18457559,62666.0,62665.0,0.01081215]
[1728867517561,0.18457559,62666.0,62665.0,0.000819]
[1728867519131,0.02499959,62666.0,62665.0,0.000819]
[1728867519580,0.18457559,62666.0,62665.0,0.01080459]
[1728867519812,0.02499959,62666.0,62665.0,0.000819]
[1728867520051,0.02499959,62666.0,62665.0,0.01080459]
[1728867520290,0.02499959,62666.0,62665.0,0.000819]
[1728867520552,0.18457559,62666.0,62665.0,0.000819]
[1728867522204,0.159576,62666.0,62665.0,0.000819]
[1728867524939,0.32080001,62666.0,62665.0,0.000819]
[1728867525180,0.46880125,62666.0,62665.0,0.000819]
[1728867527322,0.54700125,62666.0,62665.0,0.000819]
[1728867528024,0.36277724,62666.0,62665.0,0.000819]
[1728867531744,0.52400125,62666.0,62665.0,0.000819]
[1728867532194,0.49900001,62666.0,62665.0,0.000819]
[1728867535013,0.66664608,62666.0,62665.0,0.000819]
[1728867535254,0.71464894,62666.0,62665.0,0.000819]
[1728867535911,0.96464894,62666.0,62665.0,0.000819]
[1728867537059,0.96664894,62666.0,62665.0,0.000819]
[1728867537516,1.01410461,62666.0,62665.0,0.000819]
[1728867537969,1.17547432,62666.0,62665.0,0.000819]
[1728867538434,1.18724561,62666.0,62665.0,0.000819]
[1728867539518,1.13978994,62666.0,62665.0,0.000819]
[1728867540176,1.21097345,62666.0,62665.0,0.000819]
[1728867540398,1.14478994,62666.0,62665.0,0.000819]
[1728867540619,1.21605607,62666.0,62665.0,0.000819]
[1728867541492,1.14478994,62666.0,62665.0,0.000819]
[1728867541761,1.21605077,62666.0,62665.0,0.000819]
[1728867541994,1.71605077,62666.0,62665.0,0.000819]
[1728867542215,1.69104791,62666.0,62665.0,0.000819]
[1728867542429,1.61978708,62666.0,62665.0,0.000819]
[1728867542646,1.69104212,62666.0,62665.0,0.000819]
[1728867543302,1.68904212,62666.0,62665.0,0.000819]
[1728867543520,1.6890399,62666.0,62665.0,0.000819]
[1728867544391,1.61778708,62666.0,62665.0,0.000819]
[1728867544625,1.52140253,62666.0,62665.0,0.000819]
[1728867544838,1.6890486,62666.0,62665.0,0.000819]
[1728867545051,1.68903939,62666.0,62665.0,0.000819]
[1728867545267,1.71604627,62666.0,62665.0,0.000819]
[1728867545523,1.64479396,62666.0,62665.0,0.000819]
[1728867545739,1.71604735,62666.0,62665.0,0.000819]
[1728867545969,1.7160473,62666.0,62665.0,0.000819]
[1728867546414,1.73979842,62666.0,62665.0,0.000819]
[1728867546649,1.64279396,62666.0,62665.0,0.000819]
[1728867546894,1.71604927,62666.0,62665.0,0.000819]
[1728867547108,1.64479396,62666.0,62665.0,0.000819]
[1728867547539,1.71604927,62666.0,62665.0,0.000819]
[1728867547754,1.64479396,62666.0,62665.0,0.000819]
[1728867548188,1.71605687,62666.0,62665.0,0.000819]
[1728867548401,1.64479396,62666.0,62665.0,0.000819]
[1728867548618,1.71605414,62666.0,62665.0,0.000819]
[1728867548832,1.73599396,62666.0,62665.0,0.000819]
[1728867549049,1.56834789,62666.0,62665.0,0.000819]
[1728867549270,1.80725729,62666.0,62665.0,0.000819]
[1728867549489,1.73599396,62666.0,62665.0,0.000819]
[1728867550134,1.83101309,62666.0,62665.0,0.000819]
[1728867550361,1.83101309,62666.0,62661.0,0.000819]
[1728867550362,0.340386,62662.0,62661.0,0.000819]
[1728867550591,0.62604507,62657.0,62656.0,0.000819]
[1728867550810,0.78726908,62657.0,62656.0,0.000819]
[1728867551030,0.88725876,62657.0,62656.0,0.000819]
[1728867551241,1.07363846,62657.0,62656.0,0.000819]
[1728867551459,0.97864878,62657.0,62656.0,0.000819]
[1728867551679,1.32364399,62657.0,62656.0,0.000819]
[1728867552126,1.298634,62657.0,62656.0,0.000819]
[1728867552570,1.798634,62657.0,62656.0,0.000819]
[1728867552788,1.70363879,62657.0,62656.0,0.000819]
[1728867553257,1.798634,62657.0,62656.0,0.000819]
[1728867553477,1.70363879,62657.0,62656.0,0.000819]
[1728867553704,1.77484824,62657.0,62656.0,0.000819]
[1728867553931,1.78677455,62657.0,62656.0,0.000819]
[1728867554371,1.78678068,62657.0,62656.0,0.000819]
[1728867554641,1.7155651,62657.0,62656.0,0.000819]
[1728867554865,1.78678066,62657.0,62656.0,0.000819]
[1728867555082,1.80347164,62657.0,62656.0,0.000819]
[1728867555356,1.82848253,62657.0,62656.0,0.000819]
[1728867555579,1.5896209,62657.0,62656.0,0.000819]
[1728867555795,1.80473214,62657.0,62656.0,0.000819]
[1728867556009,1.75726697,62657.0,62656.0,0.000819]
[1728867556443,1.80273342,62657.0,62656.0,0.000819]
[1728867560478,1.80473342,62657.0,62656.0,0.000819]
[1728867560912,1.75526697,62657.0,62656.0,0.000819]
[1728867562272,1.73225608,62657.0,62656.0,0.000819]
[1728867562523,1.77972253,62657.0,62656.0,0.000819]
[1728867562971,1.56261001,62657.0,62656.0,0.000819]
[1728867563190,1.73025608,62657.0,62656.0,0.000819]
[1728867563408,1.77772253,62657.0,62656.0,0.000819]
[1728867563616,1.77772546,62657.0,62656.0,0.000819]
[1728867564036,1.73025608,62657.0,62656.0,0.000819]
[1728867564248,1.77772546,62657.0,62656.0,0.000819]
[1728867565335,1.8027359,62657.0,62656.0,0.000819]
[1728867566635,1.80275302,62657.0,62656.0,0.000819]
[1728867567740,1.75526652,62657.0,62656.0,0.000819]
[1728867567741,1.58762045,62657.0,62656.0,0.000819]
[1728867567964,1.70060621,62657.0,62656.0,0.000819]
[1728867568683,1.60940621,62657.0,62656.0,0.000819]
[1728867568935,1.57430854,62657.0,62656.0,0.000819]
[1728867569391,1.52180621,62657.0,62656.0,0.000819]
[1728867570586,1.5930597,62657.0,62656.0,0.000819]
[1728867573658,1.49679577,62657.0,62656.0,0.000819]
[1728867573909,1.56810404,62657.0,62656.0,0.000819]
[1728867574119,1.56810369,62657.0,62656.0,0.000819]
[1728867574334,1.55617738,62657.0,62656.0,0.000819]
[1728867574578,1.44319162,62657.0,62656.0,0.000819]
[1728867575004,1.42650064,62657.0,62656.0,0.000819]
[1728867575784,1.5394864,62657.0,62656.0,0.000819]
[1728867576923,1.56449537,62657.0,62656.0,0.000819]
[1728867578683,1.49318745,62657.0,62656.0,0.000819]
[1728867579744,1.21883198,62657.0,62656.0,0.000819]
[1728867579949,1.21883198,62657.0,62656.0,0.093219]
[1728867581812,1.19583198,62657.0,62656.0,0.093219]
[1728867586344,1.29112818,62657.0,62656.0,0.093219]
[1728867587272,1.26611921,62657.0,62656.0,0.093219]
[1728867587714,1.26611921,62657.0,62656.0,0.000819]
[1728867588861,1.42748892,62657.0,62656.0,0.000819]
[1728867590267,1.45249701,62657.0,62656.0,0.000819]
[1728867592093,1.42748892,62657.0,62656.0,0.000819]
[1728867592300,1.4274885,62657.0,62656.0,0.000819]
[1728867592724,1.4504885,62657.0,62656.0,0.000819]
[1728867593647,1.47431244,62657.0,62656.0,0.000819]
[1728867593873,1.35519272,62657.0,62656.0,0.000819]
[1728867595194,1.49932074,62657.0,62656.0,0.000819]
[1728867595418,1.49932173,62657.0,62656.0,0.000819]
[1728867597014,1.38020109,62657.0,62656.0,0.000819]
[1728867597240,1.49932399,62657.0,62656.0,0.000819]
[1728867597691,1.38020109,62657.0,62656.0,0.000819]
[1728867598429,1.49932772,62657.0,62656.0,0.000819]
[1728867599676,1.38020109,62657.0,62656.0,0.000819]
[1728867599921,1.56070109,62657.0,62656.0,0.000819]
[1728867600171,1.70364857,62657.0,62656.0,0.000819]
[1728867600415,1.55870109,62657.0,62656.0,0.000819]
[1728867600662,1.56070109,62657.0,62656.0,0.000819]
[1728867600973,1.57739207,62657.0,62656.0,0.000819]
[1728867601179,0.51058052,62653.0,62652.0,1e-06]
[1728867601414,0.84330453,62653.0,62652.0,1e-06]
[1728867601908,0.61733301,62653.0,62652.0,1e-06]
[1728867602119,0.73031877,62653.0,62652.0,1e-06]
[1728867602344,0.73531877,62653.0,62652.0,1e-06]
[1728867602572,1.14668848,62653.0,62652.0,1e-06]
[1728867602797,1.03370272,62653.0,62652.0,1e-06]
[1728867603040,1.14468848,62653.0,62652.0,1e-06]
[1728867603269,1.25967424,62653.0,62652.0,1e-06]
[1728867603545,1.14668848,62653.0,62652.0,1e-06]
[1728867604252,0.69383301,62653.0,62652.0,1e-06]
[1728867604498,0.67083301,62653.0,62652.0,1e-06]
[1728867605891,0.78986666,62653.0,62652.0,1e-06]
[1728867606228,0.78986569,62653.0,62652.0,1e-06]
[1728867606876,0.81286569,62653.0,62652.0,1e-06]
[1728867608255,0.85456704,62653.0,62652.0,1e-06]
[1728867608946,0.83156704,62653.0,62652.0,0.096501]
[1728867609166,0.53461937,62653.0,62652.0,0.174601]
[1728867609642,0.28461937,62653.0,62652.0,0.174601]
[1728867609868,0.33222178,62653.0,62652.0,0.174601]
[1728867610529,0.02501037,62653.0,62652.0,0.174601]
[1728867610749,0.18461937,62653.0,62652.0,0.174601]
[1728867610968,0.02501037,62653.0,62652.0,0.174601]
[1728867611862,0.02501037,62653.0,62652.0,0.34223503]
[1728867612078,0.159609,62653.0,62652.0,0.34223503]
[1728867612544,0.001638,62656.0,62653.0,0.1706]
[1728867612759,0.159604,62655.0,62654.0,0.0788]
[1728867612972,0.159604,62655.0,62654.0,0.1706]
[1728867613612,0.159604,62655.0,62652.0,0.16763503]
[1728867613613,0.161241,62656.0,62655.0,0.1705]
[1728867615208,0.18624633,62656.0,62655.0,0.1705]
[1728867616267,0.68624633,62656.0,62655.0,0.1705]
[1728867617737,0.68624633,62656.0,62655.0,0.1790786]
[1728867619567,0.68624633,62656.0,62655.0,0.1705]
[1728867620225,0.68624633,62656.0,62655.0,0.0928]
[1728867620435,0.159606,62654.0,62653.0,0.0935]
[1728867625088,0.1846121,62654.0,62653.0,0.0935]
[1728867627345,0.0250061,62654.0,62653.0,0.33833403]